fUSD/lending_fUSD_20260703
["ID","MTS","AMOUNT","RATE_DAILY","PERIOD"]
[426970197,1783085442000,-785.7839,0.00029863,7]
[426970198,1783085442000,-785.7839,0.00029863,7]
[426970199,1783085442000,-785.78566951,0.00029863,7]
[426970200,1783085442000,-157.53857628,0.0002988,2]
[426970201,1783085442000,-8015.55205767,0.000299,30]
[426970202,1783085442000,-280.14,0.000299,3]
[426970203,1783085442000,-381.202706,0.000299,2]
[426970207,1783085442000,-834.44360173,0.000299,2]
[426970204,1783085442000,-280.87511773,0.000299,2]
[426970205,1783085442000,-576.19827771,0.000299,2]
[426970206,1783085442000,-6900.0,0.000299,10]
[426970208,1783085442000,-153.27888287,0.000299,2]
[426970209,1783085442000,-693.08159588,0.0002991,2]
[426970211,1783085442000,-1000.0,0.0002992,7]
[426970210,1783085442000,-523.0,0.00029919,5]
[426970212,1783085442000,-1008.2,0.0002996,30]
[426970214,1783085442000,-1876.0,0.00029973,2]
[426970215,1783085442000,-303.96877841,0.0002998,2]
[426970217,1783085442000,-176.07504751,0.0002999,2]
[426970248,1783085442000,-800.0,0.0003,2]
[426970261,1783085442000,-171.0,0.0003,2]
[426970251,1783085442000,-800.0,0.0003,2]
[426970283,1783085442000,-267.196784,0.0003,7]
[426970285,1783085442000,-151.0,0.0003,7]
[426970286,1783085442000,-350.0,0.0003,30]
[426970290,1783085442000,-151.0,0.0003,7]
[426970288,1783085442000,-151.0,0.0003,7]
[426970287,1783085442000,-475.44399784,0.0003,2]
[426970289,1783085442000,-151.0,0.0003,7]
[426970292,1783085442000,-304.03379,0.0003,7]
[426970291,1783085442000,-151.0,0.0003,7]
[426970295,1783085442000,-304.03379,0.0003,7]
[426970293,1783085442000,-304.03379,0.0003,7]
[426970253,1783085442000,-50057.98206547,0.0003,2]
[426970296,1783085442000,-151.0,0.0003,7]
[426970298,1783085442000,-460.247,0.0003,7]
[426970297,1783085442000,-151.0,0.0003,7]
[426970300,1783085442000,-460.247,0.0003,7]
[426970301,1783085442000,-460.247,0.0003,7]
[426970302,1783085442000,-163.32030284,0.0003,2]
[426970299,1783085442000,-460.247,0.0003,7]
[426970304,1783085442000,-1000.0,0.00030018,7]
[426970303,1783085442000,-210.16509406,0.0003,2]
[426970305,1783085442000,-1000.0,0.00030038,7]
[426970307,1783085442000,-1000.0,0.00030079,2]
[426970306,1783085442000,-1000.0,0.00030079,2]
[426970308,1783085442000,-151.0,0.0003008,7]
[426970310,1783085442000,-698.576838,0.0003008,7]
[426970309,1783085442000,-698.576838,0.0003008,7]
[426970284,1783085442000,-267.196784,0.0003,7]
[426970281,1783085442000,-267.196784,0.0003,7]
[426970294,1783085442000,-304.03379,0.0003,7]
[426970280,1783085442000,-530.910185,0.0003,7]
[426970282,1783085442000,-267.196784,0.0003,7]
[426970250,1783085442000,-4274.71179231,0.0003,7]
[426970252,1783085442000,-800.0,0.0003,2]
[426970255,1783085442000,-591.6525568,0.0003,4]
[426970254,1783085442000,-6946.46301992,0.0003,2]
[426970256,1783085442000,-167847.14206317,0.0003,10]
[426970257,1783085442000,-31086.03242333,0.0003,2]
[426970259,1783085442000,-179.0,0.0003,2]
[426970260,1783085442000,-468.0,0.0003,2]
[426970262,1783085442000,-165.92818815,0.0003,2]
[426970265,1783085442000,-1080.86,0.0003,2]
[426970264,1783085442000,-723.89,0.0003,7]
[426970263,1783085442000,-6374.87,0.0003,2]
[426970258,1783085442000,-188.0,0.0003,2]
[426970266,1783085442000,-2499.99,0.0003,2]
[426970279,1783085442000,-530.910185,0.0003,7]
[426970267,1783085442000,-273.39947715,0.0003,2]
[426970277,1783085442000,-530.910185,0.0003,7]
[426970275,1783085442000,-157.830576,0.0003,7]
[426970278,1783085442000,-576.19827771,0.0003,2]
[426970274,1783085442000,-157.830576,0.0003,7]
[426970272,1783085442000,-157.830576,0.0003,7]
[426970276,1783085442000,-530.910185,0.0003,7]
[426970270,1783085442000,-448.0,0.0003,2]
[426970271,1783085442000,-151.0,0.0003,7]
[426970269,1783085442000,-325.0,0.0003,2]
[426970268,1783085442000,-300.75555074,0.0003,2]
[426970273,1783085442000,-157.830576,0.0003,7]
[426970327,1783085443000,-291.612651,0.0003008,7]
[426970328,1783085443000,-291.612651,0.0003008,7]
[426970330,1783085443000,-151.0,0.0003008,7]
[426970329,1783085443000,-151.0,0.0003008,7]
[426970331,1783085443000,-151.0,0.0003008,7]
[426970333,1783085443000,-304.03379,0.0003008,7]
[426970334,1783085443000,-304.03379,0.0003008,7]
[426970337,1783085443000,-151.0,0.0003008,7]
[426970336,1783085443000,-304.03379,0.0003008,7]
[426970338,1783085443000,-151.0,0.0003008,7]
[426970335,1783085443000,-304.03379,0.0003008,7]
[426970340,1783085443000,-460.247,0.0003008,7]
[426970332,1783085443000,-212.171069,0.0003008,7]
[426970326,1783085443000,-291.612651,0.0003008,7]
[426970313,1783085443000,-486.273001,0.0003008,7]
[426970324,1783085443000,-343.354177,0.0003008,7]
[426970322,1783085443000,-151.0,0.0003008,7]
[426970321,1783085443000,-343.354177,0.0003008,7]
[426970320,1783085443000,-343.354177,0.0003008,7]
[426970319,1783085443000,-151.0,0.0003008,7]
[426970315,1783085443000,-486.273001,0.0003008,7]
[426970318,1783085443000,-151.0,0.0003008,7]
[426970317,1783085443000,-151.0,0.0003008,7]
[426970316,1783085443000,-486.273001,0.0003008,7]
[426970314,1783085443000,-486.273001,0.0003008,7]
[426970311,1783085443000,-698.576838,0.0003008,7]
[426970312,1783085443000,-698.576838,0.0003008,7]
[426970339,1783085443000,-460.247,0.0003008,7]
[426970325,1783085443000,-291.612651,0.0003008,7]
[426970341,1783085443000,-460.247,0.0003008,7]
[426970323,1783085443000,-343.354177,0.0003008,7]
[426970343,1783085443000,-151.0,0.0003008,7]
[426970368,1783085443000,-1000.0,0.00030099,2]
[426970371,1783085443000,-1000.0,0.00030099,2]
[426970372,1783085443000,-2110338.68151507,0.000301,7]
[426970369,1783085443000,-1000.0,0.00030099,2]
[426970366,1783085443000,-1000.0,0.00030099,2]
[426970363,1783085443000,-151.000015,0.0003009,7]
[426970367,1783085443000,-1000.0,0.00030099,2]
[426970365,1783085443000,-1000.0,0.00030099,2]
[426970364,1783085443000,-1000.0,0.00030094,7]
[426970361,1783085443000,-267.196784,0.0003009,7]
[426970359,1783085443000,-267.196784,0.0003009,7]
[426970360,1783085443000,-267.196784,0.0003009,7]
[426970370,1783085443000,-1000.0,0.00030099,2]
[426970357,1783085443000,-530.910185,0.0003009,7]
[426970362,1783085443000,-267.196784,0.0003009,7]
[426970356,1783085443000,-530.910185,0.0003009,7]
[426970345,1783085443000,-1008.2,0.0003008,30]
[426970346,1783085443000,-1000.0,0.00030089,2]
[426970358,1783085443000,-530.910185,0.0003009,7]
[426970348,1783085443000,-151.0,0.0003009,7]
[426970347,1783085443000,-238563.70906721,0.0003009,2]
[426970350,1783085443000,-151.0,0.0003009,7]
[426970344,1783085443000,-151.0,0.0003008,7]
[426970352,1783085443000,-157.830576,0.0003009,7]
[426970351,1783085443000,-157.830576,0.0003009,7]
[426970355,1783085443000,-530.910185,0.0003009,7]
[426970353,1783085443000,-157.830576,0.0003009,7]
[426970354,1783085443000,-157.830576,0.0003009,7]
[426970349,1783085443000,-176.07504751,0.0003009,2]
[426970342,1783085443000,-460.247,0.0003008,7]
[426970374,1783085444000,-2699.27188851,0.00027397,10]
[426970373,1783085444000,-1022.35,0.00027397,10]
[426970376,1783085448000,-1234.14048746,0.00024825,2]
[426970377,1783085448000,-999.99,0.00024825,2]
[426970380,1783085449000,-696.91598316,0.00024825,2]
[426970379,1783085449000,-1671.27436848,0.00024825,2]
[426970378,1783085449000,-1215.37608533,0.00024825,2]
[426970386,1783085740000,3147.0631464,0.00030137,120]
[426970387,1783085750000,602.7163,0.00024725,120]
[426970393,1783086020000,500.0,0.00016,3]
[426970394,1783086053000,-200.0,0.00013947,2]
[426970395,1783086084000,174.06,0.0002902,120]
[426970396,1783086151000,500.0,0.00016,3]
[426970398,1783086352000,276.21168753,0.00027397,120]
[426970399,1783086394000,1766.6646,0.00023868,120]
[426970404,1783086431000,150.0,0.00013047,2]
[426970413,1783086513000,-237.52426496,0.00013867,2]
[426970411,1783086513000,-195.04672423,0.00013451,2]
[426970412,1783086513000,-150.0,0.00013451,2]
[426970414,1783086513000,-150.0,0.00013914,2]
[426970415,1783086513000,-220.50037597,0.00013968,2]
[426970417,1783086513000,-150.0,0.00014058,2]
[426970419,1783086513000,-214.55544853,0.000142,2]
[426970416,1783086513000,-357.69,0.00013975,2]
[426970420,1783086513000,-159.86525398,0.000142,2]
[426970421,1783086513000,-251.90905961,0.000142,2]
[426970422,1783086513000,-206.10741241,0.000142,2]
[426970423,1783086513000,-392.90387606,0.000142,2]
[426970424,1783086513000,-166.98077048,0.000142,2]
[426970425,1783086513000,-458.08743808,0.000142,2]
[426970426,1783086513000,-150.0,0.00014337,2]
[426970427,1783086513000,-199.0,0.00014476,2]
[426970418,1783086513000,-150.0,0.00014197,2]
[426970428,1783086514000,-466.95882096,0.00014644,2]
[426970429,1783086519000,200.21210717,0.0001424,7]
[426970433,1783086541000,2000.0,0.00030136,120]
[426970494,1783086631000,-40.72117904,0.00014644,2]
[426970495,1783086631000,-200.004,0.0001471,2]
[426970497,1783086631000,-114.28268371,0.0001499,2]
[426970496,1783086631000,-168.649501,0.0001471,2]
[426970499,1783086631000,-538.01197021,0.0001499,2]
[426970498,1783086631000,-499.25889863,0.0001499,2]
[426970502,1783086631000,-278.52586619,0.00015,2]
[426970500,1783086631000,-150.0,0.00014999,2]
[426970501,1783086631000,-387.41802979,0.00015,2]
[426970503,1783086631000,-7229.02546749,0.00015,2]
[426970512,1783086631000,-467.29685263,0.00015,2]
[426970506,1783086631000,-6277.61541563,0.00015,2]
[426970504,1783086631000,-20425.80143878,0.00015,2]
[426970507,1783086631000,-6127.228,0.00015,2]
[426970511,1783086631000,-8475.47065981,0.00015,2]
[426970509,1783086631000,-18621.07272187,0.00015,2]
[426970508,1783086631000,-52278.96996421,0.00015,2]
[426970510,1783086631000,-4001.05373841,0.00015,2]
[426970513,1783086631000,-805.82612301,0.00015,2]
[426970514,1783086631000,-1834.99177063,0.00015,2]
[426970505,1783086631000,-10051.3,0.00015,2]
[426970531,1783086637000,-416.911901,0.00015,2]
[426970533,1783086637000,-12571.81532008,0.00015,2]
[426970534,1783086637000,-555.82564882,0.00015,2]
[426970532,1783086637000,-876.60234226,0.00015,2]
[426970566,1783086638000,-1461.70229224,0.00016438,2]
[426970559,1783086638000,-1461.70229224,0.00016438,2]
[426970563,1783086638000,-1461.70229224,0.00016438,2]
[426970564,1783086638000,-1461.70229224,0.00016438,2]
[426970561,1783086638000,-1461.70229224,0.00016438,2]
[426970560,1783086638000,-1461.70229224,0.00016438,2]
[426970562,1783086638000,-1461.70229224,0.00016438,2]
[426970568,1783086638000,-1461.70229224,0.00016438,2]
[426970577,1783086638000,-1461.70229224,0.00016438,2]
[426970571,1783086638000,-1461.70229224,0.00016438,2]
[426970572,1783086638000,-1461.70229224,0.00016438,2]
[426970567,1783086638000,-1461.70229224,0.00016438,2]
[426970569,1783086638000,-1461.70229224,0.00016438,2]
[426970558,1783086638000,-1461.70229224,0.00016438,2]
[426970570,1783086638000,-1461.70229224,0.00016438,2]
[426970574,1783086638000,-1461.70229224,0.00016438,2]
[426970573,1783086638000,-1461.70229224,0.00016438,2]
[426970575,1783086638000,-1461.70229224,0.00016438,2]
[426970576,1783086638000,-1461.70229224,0.00016438,2]
[426970565,1783086638000,-1461.70229224,0.00016438,2]
[426970551,1783086638000,-1461.70229224,0.00016438,2]
[426970556,1783086638000,-1461.70229224,0.00016438,2]
[426970578,1783086638000,-1461.70229224,0.00016438,2]
[426970535,1783086638000,-15500.0,0.00015,2]
[426970536,1783086638000,-802.97385118,0.00015,2]
[426970537,1783086638000,-369.92450797,0.00015,2]
[426970538,1783086638000,-4478.58728033,0.00015,2]
[426970539,1783086638000,-942757.60214124,0.00015,2]
[426970542,1783086638000,-200.0,0.00015191,2]
[426970540,1783086638000,-556.2957345,0.00015054,2]
[426970541,1783086638000,-1359.37864162,0.00015154,2]
[426970555,1783086638000,-1461.70229224,0.00016438,2]
[426970544,1783086638000,-357.69,0.00015446,2]
[426970545,1783086638000,-200.0,0.0001563,2]
[426970543,1783086638000,-188.27807364,0.00015254,2]
[426970552,1783086638000,-1461.70229224,0.00016438,2]
[426970546,1783086638000,-2282.19915328,0.00015807,2]
[426970547,1783086638000,-255.0,0.00016124,2]
[426970553,1783086638000,-1461.70229224,0.00016438,2]
[426970550,1783086638000,-1461.70229224,0.00016438,2]
[426970549,1783086638000,-467.91268498,0.00016428,2]
[426970554,1783086638000,-1461.70229224,0.00016438,2]
[426970548,1783086638000,-200.0,0.0001634,2]
[426970579,1783086638000,-1461.70229224,0.00016438,2]
[426970606,1783086638000,-1461.70229224,0.00016438,2]
[426970581,1783086638000,-1461.70229224,0.00016438,2]
[426970634,1783086638000,-1451.62158676,0.00016438,2]
[426970637,1783086638000,-1451.62158676,0.00016438,2]
[426970628,1783086638000,-1461.70229224,0.00016438,2]
[426970639,1783086638000,-1451.62158676,0.00016438,2]
[426970632,1783086638000,-1461.70229224,0.00016438,2]
[426970630,1783086638000,-1461.70229224,0.00016438,2]
[426970641,1783086638000,-1451.62158676,0.00016438,2]
[426970645,1783086638000,-1451.62158676,0.00016438,2]
[426970643,1783086638000,-1451.62158676,0.00016438,2]
[426970647,1783086638000,-1451.62158676,0.00016438,2]
[426970660,1783086638000,-1451.62158676,0.00016438,2]
[426970649,1783086638000,-1451.62158676,0.00016438,2]
[426970653,1783086638000,-1451.62158676,0.00016438,2]
[426970656,1783086638000,-1451.62158676,0.00016438,2]
[426970662,1783086638000,-1451.62158676,0.00016438,2]
[426970658,1783086638000,-1451.62158676,0.00016438,2]
[426970664,1783086638000,-1451.62158676,0.00016438,2]
[426970666,1783086638000,-1451.62158676,0.00016438,2]
[426970580,1783086638000,-1461.70229224,0.00016438,2]
[426970625,1783086638000,-1461.70229224,0.00016438,2]
[426970623,1783086638000,-1461.70229224,0.00016438,2]
[426970651,1783086638000,-1451.62158676,0.00016438,2]
[426970621,1783086638000,-1461.70229224,0.00016438,2]
[426970582,1783086638000,-1461.70229224,0.00016438,2]
[426970620,1783086638000,-1461.70229224,0.00016438,2]
[426970584,1783086638000,-1461.70229224,0.00016438,2]
[426970583,1783086638000,-1461.70229224,0.00016438,2]
[426970585,1783086638000,-1461.70229224,0.00016438,2]
[426970586,1783086638000,-1461.70229224,0.00016438,2]
[426970587,1783086638000,-1461.70229224,0.00016438,2]
[426970590,1783086638000,-1461.70229224,0.00016438,2]
[426970592,1783086638000,-1461.70229224,0.00016438,2]
[426970600,1783086638000,-1461.70229224,0.00016438,2]
[426970588,1783086638000,-1461.70229224,0.00016438,2]
[426970595,1783086638000,-1461.70229224,0.00016438,2]
[426970602,1783086638000,-1461.70229224,0.00016438,2]
[426970612,1783086638000,-1461.70229224,0.00016438,2]
[426970604,1783086638000,-1461.70229224,0.00016438,2]
[426970610,1783086638000,-1461.70229224,0.00016438,2]
[426970608,1783086638000,-1461.70229224,0.00016438,2]
[426970614,1783086638000,-1461.70229224,0.00016438,2]
[426970597,1783086638000,-1461.70229224,0.00016438,2]
[426970617,1783086638000,-1461.70229224,0.00016438,2]
[426970618,1783086638000,-1461.70229224,0.00016438,2]
[426970715,1783086639000,-2276.34,0.00017935,2]
[426970745,1783086639000,-4647.45,0.00019339,2]
[426970743,1783086639000,-9999.99,0.00019339,2]
[426970736,1783086639000,-1402.14,0.00019339,2]
[426970740,1783086639000,-999.99,0.00019339,2]
[426970732,1783086639000,-3049.72,0.00018996,2]
[426970734,1783086639000,-9999.99,0.00019339,2]
[426970717,1783086639000,-802.17739583,0.00018,2]
[426970719,1783086639000,-665.40384612,0.00018037,2]
[426970749,1783086639000,-158.44,0.00019536,2]
[426970738,1783086639000,-299.99,0.00019339,7]
[426970752,1783086639000,-3275.62318049,0.0001995,15]
[426970768,1783086639000,-556.29573448,0.0002031,2]
[426970757,1783086639000,-3315.50232035,0.0002,2]
[426970750,1783086639000,-1359.37864156,0.00019939,2]
[426970754,1783086639000,-9830.44175176,0.0002,2]
[426970759,1783086639000,-5442.65979752,0.0002,2]
[426970761,1783086639000,-555.83,0.0002,2]
[426970763,1783086639000,-567.0,0.00020024,2]
[426970765,1783086639000,-4915.23764913,0.00020045,2]
[426970772,1783086639000,-4915.23764909,0.00020795,2]
[426970781,1783086639000,-723.14,0.0002128,2]
[426970774,1783086639000,-2773.06352958,0.00021,2]
[426970770,1783086639000,-627.97557016,0.0002041,30]
[426970721,1783086639000,-150.0,0.00018288,2]
[426970747,1783086639000,-150.99,0.00019339,2]
[426970730,1783086639000,-199.5,0.00018914,2]
[426970670,1783086639000,-1451.62158676,0.00016438,2]
[426970713,1783086639000,-556.29573448,0.00017682,2]
[426970779,1783086639000,-2211.37,0.00021273,2]
[426970668,1783086639000,-1451.62158676,0.00016438,2]
[426970677,1783086639000,-1451.62158676,0.00016438,2]
[426970679,1783086639000,-1451.62158676,0.00016438,2]
[426970673,1783086639000,-1451.62158676,0.00016438,2]
[426970686,1783086639000,-1451.62158676,0.00016438,2]
[426970675,1783086639000,-1451.62158676,0.00016438,2]
[426970684,1783086639000,-1451.62158676,0.00016438,2]
[426970688,1783086639000,-1451.62158676,0.00016438,2]
[426970682,1783086639000,-1451.62158676,0.00016438,2]
[426970690,1783086639000,-1451.62158676,0.00016438,2]
[426970694,1783086639000,-1451.62158676,0.00016438,2]
[426970692,1783086639000,-1451.62158676,0.00016438,2]
[426970698,1783086639000,-161.81,0.00016712,2]
[426970697,1783086639000,-500.0,0.00016712,2]
[426970702,1783086639000,-166.41,0.00017151,2]
[426970696,1783086639000,-500.0,0.00016438,2]
[426970700,1783086639000,-271.34,0.00017066,2]
[426970704,1783086639000,-433.0,0.00017339,2]
[426970711,1783086639000,-241.57,0.00017645,2]
[426970706,1783086639000,-2758.71,0.00017424,2]
[426970708,1783086639000,-1359.37864156,0.00017546,2]
[426970724,1783086639000,-213.0,0.00018288,2]
[426970726,1783086639000,-436.39123248,0.00018288,2]
[426970727,1783086639000,-736.0,0.00018629,2]
[426970729,1783086639000,-299.71,0.00018855,2]
[426970777,1783086639000,-489.63,0.00021273,2]
[426970850,1783086639000,-160.74177086,0.00024915,2]
[426970787,1783086639000,-500.0,0.00021917,2]
[426970841,1783086639000,-1001.47,0.00024696,2]
[426970843,1783086639000,-1359.37864156,0.00024723,2]
[426970839,1783086639000,-176.43,0.00024658,2]
[426970851,1783086639000,-214.01410157,0.00024915,2]
[426970855,1783086639000,-152.0,0.00024947,3]
[426970853,1783086639000,-185.95117094,0.0002492,2]
[426970854,1783086639000,-191.28606226,0.0002492,2]
[426970844,1783086639000,-150.0,0.00024757,2]
[426970849,1783086639000,-22779.3719528,0.00024902,2]
[426970848,1783086639000,-647.36666422,0.00024897,2]
[426970864,1783086639000,-261.0,0.00025,2]
[426970846,1783086639000,-33366.7554,0.00024777,2]
[426970847,1783086639000,-2000.0,0.00024777,2]
[426970845,1783086639000,-161.57115454,0.00024776,2]
[426970856,1783086639000,-3260.14,0.0002498,2]
[426970859,1783086639000,-167.0,0.00025,2]
[426970860,1783086639000,-151.0,0.00025,2]
[426970858,1783086639000,-466.0,0.00025,2]
[426970857,1783086639000,-172.0,0.00025,2]
[426970861,1783086639000,-214.0,0.00025,2]
[426970865,1783086639000,-373.0,0.00025,2]
[426970863,1783086639000,-151.0,0.00025,2]
[426970866,1783086639000,-1008.53053555,0.00025,2]
[426970862,1783086639000,-251.0,0.00025,2]
[426970783,1783086639000,-4915.23764909,0.00021545,2]
[426970840,1783086639000,-153.94,0.00024658,2]
[426970838,1783086639000,-153.87,0.00024658,2]
[426970852,1783086639000,-211.74395641,0.00024919,2]
[426970830,1783086639000,-562.75,0.0002434,2]
[426970785,1783086639000,-500.0,0.00021659,2]
[426970789,1783086639000,-500.0,0.00021917,2]
[426970799,1783086639000,-162.49,0.00022876,2]
[426970791,1783086639000,-500.0,0.00021917,2]
[426970795,1783086639000,-4915.23764909,0.00022295,2]
[426970793,1783086639000,-23573.14007423,0.00022,4]
[426970797,1783086639000,-1359.37864156,0.00022331,2]
[426970837,1783086639000,-6837.9674,0.00024577,2]
[426970803,1783086639000,-4915.23764909,0.00023045,2]
[426970805,1783086639000,-500.0,0.00023204,2]
[426970808,1783086639000,-3340.7,0.00023204,2]
[426970812,1783086639000,-5000.0,0.00023488,2]
[426970810,1783086639000,-174.06,0.00023216,2]
[426970801,1783086639000,-223.88,0.00022984,2]
[426970814,1783086639000,-1001.47,0.0002352,2]
[426970820,1783086639000,-4915.23764909,0.00023794,2]
[426970835,1783086639000,-7849.17288913,0.00024538,2]
[426970834,1783086639000,-500.0,0.00024459,2]
[426970832,1783086639000,-153.94932504,0.00024397,2]
[426970828,1783086639000,-1001.47,0.00024108,2]
[426970836,1783086639000,-4915.23764909,0.00024544,2]
[426970826,1783086639000,-166.18,0.00024028,2]
[426970824,1783086639000,-12257.43,0.00023968,2]
[426970825,1783086639000,-718.50564778,0.00023985,2]
[426970816,1783086639000,-1149.56,0.00023599,2]
[426970822,1783086639000,-249.0,0.00023914,2]
[426970818,1783086639000,-1000.0,0.00023614,2]
[426970889,1783086640000,-1876.0,0.00025671,2]
[426970878,1783086640000,-160.0,0.00025557,2]
[426970873,1783086640000,-500.0,0.00025309,2]
[426970876,1783086640000,-153.94,0.00025342,7]
[426970875,1783086640000,-500.0,0.00025309,2]
[426970871,1783086640000,-1001.47,0.00025284,2]
[426970874,1783086640000,-500.0,0.00025309,2]
[426970872,1783086640000,-4915.23764909,0.00025294,2]
[426970869,1783086640000,-246.69,0.00025174,2]
[426970867,1783086640000,-325.59837688,0.0002501,2]
[426970888,1783086640000,-303.96877841,0.000256,2]
[426970870,1783086640000,-3900.22,0.00025254,2]
[426970880,1783086640000,-160.0,0.00025558,2]
[426970868,1783086640000,-367.0,0.000251,7]
[426970879,1783086640000,-160.0,0.00025558,2]
[426970877,1783086640000,-178.28373988,0.000255,2]
[426970891,1783086640000,-151.0,0.00025697,7]
[426970895,1783086640000,-799.99,0.000257,7]
[426970893,1783086640000,-2700.0,0.000257,9]
[426970892,1783086640000,-233231.52647362,0.000257,2]
[426970890,1783086640000,-467.91268498,0.0002569,2]
[426970894,1783086640000,-1615365.78899321,0.000257,7]
[426970886,1783086640000,-1300.0,0.000256,9]
[426970887,1783086640000,-280.87511773,0.000256,2]
[426970884,1783086640000,-4674.50403296,0.000256,2]
[426970883,1783086640000,-693.86923961,0.000256,2]
[426970881,1783086640000,-216.74224685,0.00025558,2]
[426970882,1783086640000,-186.29288406,0.000256,2]
[426970885,1783086640000,-199.19231004,0.000256,2]
[426970897,1783086642000,-17976.46963593,0.000257,7]
[426970903,1783086648000,-22.67643361,0.000257,2]
[426970900,1783086648000,-159.35,0.00024658,2]
[426970901,1783086648000,-159.35,0.00025571,7]
[426970902,1783086648000,-151.0,0.000257,2]
[426970911,1783086649000,-3161.81008987,0.000257,7]
[426970910,1783086649000,-337.58991023,0.000257,2]
[426970909,1783086649000,-1432.73365616,0.000257,2]
[426970906,1783086649000,-210.16509406,0.000256,2]
[426970913,1783086650000,-396.18161387,0.000257,7]
[426970914,1783086650000,-316.91980893,0.000257,7]
[426970915,1783086650000,-22922.46399627,0.000257,7]
[426970920,1783086650000,-387109.76542135,0.000257,7]
[426970919,1783086650000,-10758.65291389,0.000256,2]
[426970912,1783086650000,-2326.10698048,0.000257,7]
[426970929,1783086797000,10000.0,0.00030036,120]
[426970934,1783086961000,390.98612,0.00025699,120]
[426970933,1783086961000,10000.0,0.00025698,120]
[426970935,1783087060000,222.00590759,0.00015299,7]
[426970936,1783087104000,550.68,0.00029827,120]
[426970945,1783087441000,219.3,0.00030137,120]
[426970947,1783087479000,169.15,0.00029271,120]
[426970946,1783087479000,169.15,0.00026344,120]
[426970964,1783087650000,-303.297,0.00014999,2]
[426970966,1783087672000,-105.574,0.00014999,2]
[426970965,1783087672000,-196.703,0.00014999,2]
[426970969,1783087690000,-150.0,0.00014999,2]
[426970971,1783087715000,-150.0,0.00015149,2]
[426970970,1783087715000,-39.77973164,0.00014999,2]
[426970975,1783087739000,69.02326836,0.00014464,2]
[426970976,1783087743000,2000.0,0.00030136,120]
[426970990,1783087761000,-924.25935243,0.00014555,2]
[426970991,1783087761000,-75.74064757,0.00014555,2]
[426970994,1783087761000,-779.4954365,0.00014692,2]
[426970988,1783087761000,-930.97673164,0.00014464,2]
[426970989,1783087761000,-1000.0,0.0001451,2]
[426970993,1783087761000,-1000.0,0.00014647,2]
[426970998,1783087761000,-634.73152057,0.00014829,2]
[426970997,1783087761000,-1000.0,0.00014784,2]
[426970995,1783087761000,-220.5045635,0.00014692,2]
[426970996,1783087761000,-1000.0,0.00014738,2]
[426970999,1783087761000,-365.26847943,0.00014829,2]
[426971000,1783087761000,-466.18460856,0.00014875,2]
[426970992,1783087761000,-1000.0,0.00014601,2]
[426971013,1783087789000,-418.671,0.00014875,2]
[426971014,1783087805000,-115.14439144,0.00014875,2]
[426971015,1783087817000,-714.12260856,0.00014921,2]
[426971017,1783087830000,-285.87739144,0.00014921,2]
[426971030,1783087831000,-1000.0,0.00014966,2]
[426971031,1783087831000,-1000.0,0.00015012,2]
[426971033,1783087831000,-18.17094082,0.00015103,2]
[426971034,1783087831000,-322.39799457,0.00015103,2]
[426971032,1783087831000,-1000.0,0.00015058,2]
[426971072,1783087832000,-846.61620404,0.00023333,2]
[426971061,1783087832000,-151.0,0.00022294,2]
[426971055,1783087832000,-150.99,0.00020951,2]
[426971057,1783087832000,-856.52,0.00020951,2]
[426971056,1783087832000,-9999.99,0.00020951,2]
[426971054,1783087832000,-4112.78,0.00020951,2]
[426971059,1783087832000,-7227.51,0.00021273,2]
[426971058,1783087832000,-427.22,0.00021273,2]
[426971053,1783087832000,-3033.56,0.00020951,2]
[426971052,1783087832000,-2001.49,0.00020951,2]